[Event "Summer Prague Open-A 2024"]
[Site "Prague"]
[Date "2024.08.03"]
[Round "2.1"]
[White "Kudaibergen, Nurlykhan"]
[Black "Neuman, Petr"]
[Result "0-1"]
[Annotator "ChessBase"]
[ECO "B06"]
[WhiteElo "2041"]
[BlackElo "2426"]
[PlyCount "98"]
[EventDate "2024.08.02"]
[EventType "swiss"]
[EventCountry "CZE"]
[SourceTitle "playchess.com"]
[Source "ChessBase"]
[SourceQuality "1"]
[TimeControl "40/5400+30:1800+30"]

1. e4 {[%emt 0:09:49]} g6 {[%emt 0:00:34]} 2. d4 {[%emt 0:00:06]} Bg7 {[%emt 0:00:05]} 3. Nc3 {[%emt 0:02:19]} d6 {[%emt 0:00:13]} 4. f4 {[%emt 0:03:56]} a6 {[%emt 0:02:00]} 5. a4 {[%emt 0:02:03]} Nf6 {[%emt 0:02:14]} 6. Nf3 {[%emt 0:02:19]} c5 {[%emt 0:01:33]} 7. dxc5 {[%emt 0:10:30]} Qa5 {[%emt 0:00:35]} 8. Bd3 {[%emt 0:00:27]} Qxc5 {[%emt 0:00:14]} 9. Qe2 {[%emt 0:00:40]} Nc6 {[%emt 0:08:00]} 10. Be3 {[%emt 0:11:03]} Qh5 {[%emt 0:01:56]} 11. O-O {[%emt 0:02:04]} Ng4 {[%emt 0:01:08]} 12. h3 {[%emt 0:04:55]} Nxe3 {[%emt 0:02:53]} 13. Qxe3 {[%emt 0:00:04]} O-O {[%emt 0:05:01]} 14. Qb6 {[%emt 0:06:09]} Bxc3 {[%emt 0:10:56]} 15. bxc3 {[%emt 0:00:08]} Qa5 {[%emt 0:00:12]} 16. Qb2 {[%emt 0:02:41]} Bd7 {[%emt 0:04:46]} 17. Kh2 {[%emt 0:02:28]} Rfc8 {[%emt 0:01:12]} 18. Ng5 {[%emt 0:03:40]} Nd8 {[%emt 0:00:29]} 19. Qb4 {[%emt 0:00:52]} Qc5 {[%emt 0:00:28]} 20. Ra3 {[%emt 0:00:58]} f6 {[%emt 0:01:29]} 21. Nf3 {[%emt 0:02:03]} Kg7 {[%emt 0:00:09]} 22. Nd2 {[%emt 0:03:30]} Be6 {[%emt 0:01:11]} 23. a5 {[%emt 0:03:27]} Rc7 {[%emt 0:00:52]} 24. Rf3 {[%emt 0:00:37]} Rac8 {[%emt 0:00:28]} 25. Nf1 {[%emt 0:01:06]} g5 {[%emt 0:10:02]} 26. e5 {[%emt 0:05:04]} dxe5 {[%emt 0:05:26]} 27. fxg5 {[%emt 0:01:50]} Qxb4 {[%emt 0:00:05]} 28. gxf6+ {[%emt 0:02:05]} exf6 {[%emt 0:00:04]} 29. cxb4 {[%emt 0:00:03]} Nc6 {[%emt 0:00:09]} 30. c3 {[%emt 0:02:08]} Ne7 {[%emt 0:00:29]} 31. Ng3 {[%emt 0:00:06]} Nd5 {[%emt 0:03:14]} 32. Nh5+ {[%emt 0:05:52]} Kf7 {[%emt 0:00:16]} 33. Be4 {[%emt 0:00:46]} Ke7 {[%emt 0:01:58]} 34. Ng7 {[%emt 0:07:04]} Rc4 {[%emt 0:10:22]} 35. Nxe6 {[%emt 0:00:49]} Rxe4 {[%emt 0:00:04]} 36. Nc5 {[%emt 0:00:13]} Re2 {[%emt 0:00:05]} 37. Rg3 {[%emt 0:01:15]} f5 {[%emt 0:00:37]} 38. Ra1 {[%emt 0:03:01]} f4 {[%emt 0:00:17]} 39. Rg5 {[%emt 0:00:55]} Kf6 {[%emt 0:00:37]} 40. h4 {[%emt 0:00:25]} h6 {[%emt 0:00:34]} 41. Nd7+ {[%emt 0:30:51]} Ke6 {[%emt 0:30:23]} 42. Rg7 {[%emt 0:00:12]} Rxc3 {[%emt 0:01:55]} 43. Rd1 {[%emt 0:00:14]} Ne3 {[%emt 0:01:42]} 44. Rg6+ {[%emt 0:00:07]} Kf5 {[%emt 0:00:28]} 45. Rdd6 {[%emt 0:01:00]} Ng4+ {[%emt 0:00:43]} 46. Rxg4 {[%emt 0:00:11]} Kxg4 {[%emt 0:00:04]} 47. Rg6+ {[%emt 0:01:11]} Kf5 {[%emt 0:00:49]} 48. Rf6+ {[%emt 0:00:14]} Ke4 {[%emt 0:00:32]} 49. Nc5+ {[%emt 0:00:00]} Kd5 {[%emt 0:00:00]} 0-1

[Event "Summer Prague Open-A 2024"]
[Site "Prague"]
[Date "2024.08.03"]
[Round "2.2"]
[White "Nothnagel, Marian Can"]
[Black "Rousek, Jan"]
[Result "1-0"]
[Annotator "ChessBase"]
[ECO "B40"]
[WhiteElo "2410"]
[BlackElo "2034"]
[PlyCount "57"]
[EventDate "2024.08.02"]
[EventType "swiss"]
[EventCountry "CZE"]
[SourceTitle "playchess.com"]
[Source "ChessBase"]
[SourceQuality "1"]
[TimeControl "40/5400+30:1800+30"]

1. e4 {[%emt 0:00:02]} c5 {[%emt 0:00:13]} 2. Nf3 {[%emt 0:00:03]} e6 {[%emt 0:00:07]} 3. d3 {[%emt 0:00:03]} Nc6 {[%emt 0:01:02]} 4. Nbd2 {[%emt 0:00:05]} g6 {[%emt 0:01:27]} 5. g3 {[%emt 0:00:05]} Bg7 {[%emt 0:00:06]} 6. Bg2 {[%emt 0:00:05]} Nge7 {[%emt 0:00:56]} 7. O-O {[%emt 0:00:18]} O-O {[%emt 0:00:30]} 8. Re1 {[%emt 0:00:03]} d5 {[%emt 0:03:11]} 9. c3 {[%emt 0:00:18]} d4 {[%emt 0:07:29]} 10. cxd4 {[%emt 0:06:13]} cxd4 {[%emt 0:07:26]} 11. e5 {[%emt 0:05:47]} Qc7 {[%emt 0:11:40]} 12. Nc4 {[%emt 0:02:27]} b5 {[%emt 0:05:03]} 13. Nd6 {[%emt 0:12:14]} Rb8 {[%emt 0:00:35]} 14. Bf4 {[%emt 0:20:13]} Nd5 {[%emt 0:05:47]} 15. Rc1 {[%emt 0:02:47]} Qb6 {[%emt 0:02:56]} 16. Ng5 {[%emt 0:09:44]} h6 {[%emt 0:08:59]} 17. Ngxf7 {[%emt 0:09:32]} Rxf7 {[%emt 0:19:26]} 18. Nxf7 {[%emt 0:01:11]} Kxf7 {[%emt 0:07:16]} 19. Bxd5 {[%emt 0:00:07]} exd5 {[%emt 0:01:12]} 20. e6+ {[%emt 0:00:05]} Bxe6 {[%emt 0:00:12]} 21. Rxc6 {[%emt 0:00:09]} Qxc6 {[%emt 0:00:13]} 22. Bxb8 {[%emt 0:00:04]} Qc8 {[%emt 0:01:55]} 23. Qf3+ {[%emt 0:01:16]} Kg8 {[%emt 0:02:00]} 24. Be5 {[%emt 0:01:14]} Bxe5 {[%emt 0:01:55]} 25. Rxe5 {[%emt 0:00:05]} Qc1+ {[%emt 0:00:05]} 26. Kg2 {[%emt 0:00:03]} Qc8 {[%emt 0:00:06]} 27. h4 {[%emt 0:00:23]} Kg7 {[%emt 0:01:18]} 28. Qf4 {[%emt 0:00:10]} Bh3+ {[%emt 0:02:19]} 29. Kh2 {[%emt 0:00:05]} 1-0

[Event "Summer Prague Open-A 2024"]
[Site "Prague"]
[Date "2024.08.03"]
[Round "2.3"]
[White "Berkes, Alexander"]
[Black "Garcia Roman, Daniel"]
[Result "0-1"]
[Annotator "RC"]
[ECO "C01"]
[WhiteElo "2037"]
[BlackElo "2397"]
[PlyCount "90"]
[EventDate "2024.08.02"]
[EventType "swiss"]
[EventCountry "CZE"]
[SourceTitle "playchess.com"]
[Source "ChessBase"]
[SourceQuality "1"]
[TimeControl "40/5400+30:1800+30"]

1. e4 {[%emt 0:00:03]} e6 {[%emt 0:06:39]} 2. d4 {[%emt 0:00:07]} d5 {[%emt 0:00:09]} 3. exd5 {[%emt 0:00:25]} exd5 {[%emt 0:00:34]} 4. Nf3 {[%emt 0:00:14]} Bd6 {[%emt 0:10:22]} 5. c4 {[%emt 0:03:46]} dxc4 {[%emt 0:01:53]} 6. Bxc4 {[%emt 0:00:09]} Nf6 {[%emt 0:00:38]} 7. O-O {[%emt 0:02:12]} O-O {[%emt 0:00:48]} 8. Bg5 {[%emt 0:03:51]} Nc6 {[%emt 0:23:13]} 9. Nc3 {[%emt 0:15:25]} h6 {[%emt 0:02:12]} 10. Bh4 {[%emt 0:10:54]} Bg4 {[%emt 0:07:34]} 11. d5 {[%emt 0:12:14]} Ne5 {[%emt 0:07:39]} 12. Be2 {[%emt 0:00:20]} Ng6 {[%emt 0:00:43]} 13. Bg3 {[%emt 0:05:51]} a6 {[%emt 0:04:18]} 14. Qd4 {[%emt 0:08:28]} Re8 {[%emt 0:03:06]} 15. Rfe1 {[%emt 0:01:55]} Bxg3 {[%emt 0:05:27]} 16. hxg3 {[%emt 0:02:22]} Qd6 {[%emt 0:00:11]} 17. Bd3 {[%emt 0:13:34]} Bxf3 {[%emt 0:01:26]} 18. gxf3 {[%emt 0:02:20]} c5 {[%emt 0:00:21]} 19. Qa4 {[%emt 0:01:31]} b5 {[%emt 0:00:19]} 20. Qc2 {[%emt 0:04:25]} Rxe1+ {[%emt 0:13:43]} 21. Rxe1 {[%emt 0:00:03]} Ne5 {[%emt 0:00:16]} 22. Be4 {[%emt 0:04:46]} Re8 {[%emt 0:02:22]} 23. Rd1 {[%emt 0:02:03]} c4 {[%emt 0:02:04]} 24. f4 {[%emt 0:01:17]} Ned7 {[%emt 0:00:16]} 25. Bg2 {[%emt 0:01:04]} Nc5 {[%emt 0:00:19]} 26. Qd2 {[%emt 0:02:10]} Nd3 {[%emt 0:03:53]} 27. Bf1 {[%emt 0:00:47]} b4 {[%emt 0:00:22]} 28. Na4 {[%emt 0:00:56]} Ne4 {[%emt 0:00:13]} 29. Qe3 {[%emt 0:00:56]} Ndxf2 {[%emt 0:00:18]} 30. Rd4 {[%emt 0:00:44]} f5 {[%emt 0:03:03]} 31. Bxc4 {[%emt 0:00:29]} Ng4 {[%emt 0:00:18]} 32. Qf3 {[%emt 0:00:36]} Nef2 {[%emt 0:00:39]} 33. Qxf2 Nxf2 {[%emt 0:00:27]} 34. Kxf2 {[%emt 0:00:31]} Kf8 {[%emt 0:00:40]} 35. b3 {[%emt 0:00:52]} Qe7 {[%emt 0:00:20]} 36. Rd1 {[%emt 0:00:15]} Qe3+ {[%emt 0:00:27]} 37. Kg2 {[%emt 0:00:30]} Qe4+ {[%emt 0:00:09]} 38. Kh3 {[%emt 0:00:53]} Qf3 {[%emt 0:00:12]} 39. Rf1 {[%emt 0:00:22]} Qg4+ {[%emt 0:00:14]} 40. Kh2 {[%emt 0:00:21]} Re3 {[%emt 0:00:55]} 41. Rg1 {[%emt 0:30:14]} Qh5+ {[%emt 0:30:45]} 42. Kg2 {[%emt 0:00:08]} Qf3+ {[%emt 0:00:35]} 43. Kh2 {[%emt 0:00:00]} Ke7 {[%emt 0:00:00]} 44. Bxa6 {[%emt 0:00:00]} g5 {[%emt 0:00:00]} 45. fxg5 {[%emt 0:00:00]} f4 0-1

[Event "Summer Prague Open-A 2024"]
[Site "Prague"]
[Date "2024.08.03"]
[Round "2.4"]
[White "Prokofiev, Valentyn"]
[Black "Kalous, Miroslav"]
[Result "1-0"]
[Annotator "RC"]
[ECO "E17"]
[WhiteElo "2381"]
[BlackElo "2030"]
[PlyCount "99"]
[EventDate "2024.08.02"]
[EventType "swiss"]
[EventCountry "CZE"]
[SourceTitle "playchess.com"]
[Source "ChessBase"]
[SourceQuality "1"]
[TimeControl "40/5400+30:1800+30"]

1. d4 {[%emt 0:00:04]} Nf6 {[%emt 0:00:14]} 2. c4 {[%emt 0:00:09]} e6 {[%emt 0:00:13]} 3. Nf3 {[%emt 0:00:05]} b6 {[%emt 0:00:28]} 4. g3 {[%emt 0:00:05]} Bb7 {[%emt 0:00:14]} 5. Bg2 {[%emt 0:00:04]} Be7 {[%emt 0:00:24]} 6. O-O {[%emt 0:00:04]} O-O {[%emt 0:00:09]} 7. d5 {[%emt 0:00:02]} exd5 {[%emt 0:01:10]} 8. Nh4 {[%emt 0:00:03]} c6 {[%emt 0:00:43]} 9. cxd5 {[%emt 0:00:05]} cxd5 {[%emt 0:00:41]} 10. Nc3 {[%emt 0:03:48]} Bc6 {[%emt 0:04:01]} 11. Nf5 {[%emt 0:05:51]} Bc5 {[%emt 0:05:32]} 12. Bg5 {[%emt 0:19:45]} d4 {[%emt 0:25:44]} 13. Nxd4 {[%emt 0:05:48]} Bxg2 {[%emt 0:03:08]} 14. Kxg2 {[%emt 0:00:04]} Nc6 {[%emt 0:01:11]} 15. Nf3 {[%emt 0:04:50]} Be7 {[%emt 0:03:25]} 16. Qd3 {[%emt 0:10:53]} h6 {[%emt 0:09:50]} 17. Bf4 {[%emt 0:05:05]} Nh5 {[%emt 0:16:44]} 18. Be3 {[%emt 0:02:03]} Nf6 {[%emt 0:01:20]} 19. Rfd1 {[%emt 0:03:46]} Re8 {[%emt 0:06:34]} 20. Rac1 {[%emt 0:06:14]} Bf8 {[%emt 0:04:20]} 21. Nd5 {[%emt 0:02:04]} Nxd5 {[%emt 0:04:46]} 22. Qxd5 {[%emt 0:00:04]} Nb4 {[%emt 0:01:08]} 23. Qxd7 {[%emt 0:03:13]} Qxd7 {[%emt 0:01:47]} 24. Rxd7 {[%emt 0:00:03]} Red8 {[%emt 0:01:00]} 25. Rxd8 {[%emt 0:00:57]} Rxd8 {[%emt 0:00:06]} 26. a3 {[%emt 0:00:10]} Nd5 {[%emt 0:00:31]} 27. Bd4 {[%emt 0:00:16]} Re8 {[%emt 0:01:54]} 28. e3 {[%emt 0:00:35]} Bd6 {[%emt 0:01:21]} 29. Nd2 {[%emt 0:04:46]} Bb8 {[%emt 0:00:52]} 30. Kf3 {[%emt 0:01:02]} f6 {[%emt 0:00:41]} 31. h4 {[%emt 0:01:30]} h5 {[%emt 0:00:54]} 32. Ne4 {[%emt 0:03:40]} Kf7 {[%emt 0:00:45]} 33. Nc3 {[%emt 0:01:11]} Nc7 {[%emt 0:00:46]} 34. Na2 {[%emt 0:01:38]} Ne6 {[%emt 0:01:26]} 35. Nb4 {[%emt 0:01:26]} Bd6 {[%emt 0:01:17]} 36. Nc6 {[%emt 0:02:29]} Ra8 {[%emt 0:00:27]} 37. Rd1 {[%emt 0:02:25]} Bc7 {[%emt 0:00:55]} 38. Bc3 {[%emt 0:00:13]} Ke8 {[%emt 0:00:48]} 39. Rd5 {[%emt 0:00:07]} a6 {[%emt 0:01:25]} 40. Rxh5 {[%emt 0:00:36]} Kd7 {[%emt 0:00:25]} 41. Nd4 {[%emt 0:30:17]} Nxd4+ {[%emt 0:03:44]} 42. Bxd4 {[%emt 0:00:00]} Ke6 {[%emt 0:00:32]} 43. g4 {[%emt 0:00:00]} Rf8 {[%emt 0:03:04]} 44. Ke4 {[%emt 0:00:00]} Bd8 {[%emt 0:02:24]} 45. f4 {[%emt 0:00:00]} Re8 {[%emt 0:01:43]} 46. Rd5 {[%emt 0:00:00]} Kf7+ {[%emt 0:01:51]} 47. Kf3 {[%emt 0:00:00]} Ke7 {[%emt 0:01:35]} 48. e4 {[%emt 0:00:00]} Rh8 {[%emt 0:00:43]} 49. h5 {[%emt 0:00:00]} Rg8 {[%emt 0:01:35]} 50. e5 {[%emt 0:00:00]} 1-0

[Event "Summer Prague Open-A 2024"]
[Site "Prague"]
[Date "2024.08.03"]
[Round "2.5"]
[White "Yildirim, Kemal"]
[Black "Pulpan, Jakub"]
[Result "0-1"]
[Annotator "RC"]
[ECO "B51"]
[WhiteElo "2029"]
[BlackElo "2378"]
[PlyCount "90"]
[EventDate "2024.08.02"]
[EventType "swiss"]
[EventCountry "CZE"]
[SourceTitle "playchess.com"]
[Source "ChessBase"]
[SourceQuality "1"]
[TimeControl "40/5400+30:1800+30"]

1. e4 {[%emt 0:00:02]} c5 {[%emt 0:03:20]} 2. Nf3 {[%emt 0:00:15]} d6 {[%emt 0:00:30]} 3. Bb5+ {[%emt 0:00:25]} Nd7 {[%emt 0:00:37]} 4. O-O {[%emt 0:00:27]} Ngf6 {[%emt 0:00:52]} 5. Re1 {[%emt 0:01:01]} a6 {[%emt 0:00:42]} 6. Bf1 {[%emt 0:00:45]} e5 {[%emt 0:06:24]} 7. c3 {[%emt 0:02:09]} Be7 {[%emt 0:00:10]} 8. d4 {[%emt 0:02:12]} O-O {[%emt 0:03:35]} 9. a4 {[%emt 0:07:29]} b6 {[%emt 0:09:23]} 10. Nbd2 {[%emt 0:03:52]} Bb7 {[%emt 0:03:07]} 11. dxe5 {[%emt 0:22:36]} dxe5 {[%emt 0:00:49]} 12. Qc2 {[%emt 0:00:14]} Qc7 {[%emt 0:01:05]} 13. Nc4 {[%emt 0:03:33]} b5 {[%emt 0:01:47]} 14. axb5 {[%emt 0:03:37]} axb5 {[%emt 0:00:05]} 15. Rxa8 {[%emt 0:00:12]} Rxa8 {[%emt 0:04:43]} 16. Na3 {[%emt 0:00:08]} c4 {[%emt 0:01:05]} 17. Nxb5 {[%emt 0:03:37]} Qc6 {[%emt 0:00:21]} 18. Na3 {[%emt 0:00:32]} Bxa3 {[%emt 0:00:17]} 19. bxa3 {[%emt 0:00:06]} Nxe4 {[%emt 0:00:07]} 20. Qe2 {[%emt 0:09:24]} Rc8 {[%emt 0:05:03]} 21. Ng5 {[%emt 0:07:37]} Nxg5 {[%emt 0:17:22]} 22. Bxg5 {[%emt 0:00:08]} f6 {[%emt 0:00:21]} 23. Be3 {[%emt 0:00:28]} f5 {[%emt 0:03:33]} 24. Rd1 {[%emt 0:07:25]} Nf6 {[%emt 0:01:11]} 25. f3 {[%emt 0:05:03]} Nd5 {[%emt 0:04:19]} 26. Qd2 {[%emt 0:01:09]} Qa4 {[%emt 0:01:34]} 27. Rb1 {[%emt 0:00:28]} Ba8 {[%emt 0:00:21]} 28. Bf2 {[%emt 0:03:14]} Qxa3 {[%emt 0:02:51]} 29. Rb5 {[%emt 0:00:17]} Qd6 {[%emt 0:02:12]} 30. Ra5 {[%emt 0:03:18]} Bb7 {[%emt 0:07:54]} 31. Ra4 {[%emt 0:02:41]} Rd8 {[%emt 0:05:41]} 32. Bxc4 {[%emt 0:04:22]} Qc6 {[%emt 0:02:00]} 33. Bb3 {[%emt 0:00:24]} Rd7 {[%emt 0:04:39]} 34. Ra7 {[%emt 0:01:41]} Qc8 {[%emt 0:04:05]} 35. Ra5 {[%emt 0:03:24]} Qd8 {[%emt 0:00:57]} 36. Qa2 {[%emt 0:03:11]} Kh8 {[%emt 0:00:32]} 37. Bxd5 {[%emt 0:01:00]} Bxd5 {[%emt 0:00:11]} 38. Qa3 {[%emt 0:00:28]} e4 {[%emt 0:01:56]} 39. fxe4 {[%emt 0:00:22]} Bxe4 {[%emt 0:00:17]} 40. h3 {[%emt 0:00:41]} Rd1+ {[%emt 0:02:39]} 41. Kh2 {[%emt 0:30:08]} Qb8+ {[%emt 0:15:06]} 42. Bg3 {[%emt 0:00:00]} f4 {[%emt 0:00:32]} 43. Bf2 {[%emt 0:00:00]} Bxg2 {[%emt 0:05:26]} 44. Rb5 {[%emt 0:00:00]} Qc8 {[%emt 0:02:04]} 45. c4 {[%emt 0:00:00]} Bc6 {[%emt 0:04:13]} 0-1

[Event "Summer Prague Open-A 2024"]
[Site "Prague"]
[Date "2024.08.03"]
[Round "2.6"]
[White "Anwesh, Upadhyaya"]
[Black "Swati, Mohota"]
[Result "1/2-1/2"]
[Annotator "RC"]
[ECO "A06"]
[WhiteElo "2373"]
[BlackElo "2026"]
[PlyCount "129"]
[EventDate "2024.08.02"]
[EventType "swiss"]
[EventCountry "CZE"]
[SourceTitle "playchess.com"]
[Source "ChessBase"]
[SourceQuality "1"]
[TimeControl "40/5400+30:1800+30"]

1. Nf3 {[%emt 0:15:40]} d5 {[%emt 0:00:07]} 2. c4 {[%emt 0:00:55]} e6 {[%emt 0:00:13]} 3. d4 {[%emt 0:01:30]} Be7 {[%emt 0:00:15]} 4. Nc3 {[%emt 0:01:18]} Nf6 {[%emt 0:00:21]} 5. cxd5 {[%emt 0:01:19]} exd5 {[%emt 0:02:18]} 6. Bg5 {[%emt 0:00:11]} h6 {[%emt 0:00:53]} 7. Bh4 {[%emt 0:00:34]} O-O {[%emt 0:01:37]} 8. e3 {[%emt 0:00:09]} c6 {[%emt 0:05:43]} 9. Qc2 {[%emt 0:00:10]} Ne4 {[%emt 0:02:23]} 10. Bxe7 {[%emt 0:02:49]} Qxe7 {[%emt 0:00:03]} 11. Bd3 {[%emt 0:00:44]} Nxc3 {[%emt 0:12:00]} 12. bxc3 {[%emt 0:00:18]} Nd7 {[%emt 0:00:16]} 13. O-O {[%emt 0:01:58]} b6 {[%emt 0:02:35]} 14. a4 {[%emt 0:09:27]} c5 {[%emt 0:08:10]} 15. Rfb1 {[%emt 0:12:46]} Rb8 {[%emt 0:15:09]} 16. a5 {[%emt 0:05:44]} c4 {[%emt 0:01:28]} 17. Bh7+ {[%emt 0:00:59]} Kh8 {[%emt 0:00:04]} 18. axb6 {[%emt 0:00:33]} axb6 {[%emt 0:06:02]} 19. Bf5 {[%emt 0:09:22]} Qd6 {[%emt 0:15:12]} 20. Rb5 {[%emt 0:03:46]} g6 {[%emt 0:03:45]} 21. Bh3 {[%emt 0:02:14]} Nf6 {[%emt 0:01:22]} 22. Bxc8 {[%emt 0:00:25]} Rfxc8 {[%emt 0:00:14]} 23. Ne5 {[%emt 0:04:33]} Rc7 {[%emt 0:00:11]} 24. f3 {[%emt 0:00:28]} Kg7 {[%emt 0:00:34]} 25. e4 {[%emt 0:00:50]} Rbb7 {[%emt 0:04:44]} 26. Rab1 {[%emt 0:04:40]} Rb8 {[%emt 0:00:44]} 27. Qe2 {[%emt 0:02:02]} Qe6 {[%emt 0:03:31]} 28. Re1 {[%emt 0:04:00]} Qe8 {[%emt 0:01:23]} 29. Qb2 {[%emt 0:00:40]} Qe6 {[%emt 0:00:24]} 30. Re2 {[%emt 0:01:51]} Qd6 {[%emt 0:03:07]} 31. Qd2 {[%emt 0:05:52]} Rbb7 {[%emt 0:01:55]} 32. Qf4 {[%emt 0:03:08]} Nh5 {[%emt 0:01:15]} 33. Qe3 {[%emt 0:00:35]} dxe4 {[%emt 0:02:32]} 34. fxe4 {[%emt 0:00:23]} f6 {[%emt 0:00:49]} 35. Nf3 {[%emt 0:02:09]} Nf4 {[%emt 0:01:49]} 36. Reb2 {[%emt 0:00:09]} Nd3 {[%emt 0:00:57]} 37. Rb1 {[%emt 0:01:46]} Qa3 {[%emt 0:01:51]} 38. Qd2 {[%emt 0:01:35]} Re7 {[%emt 0:01:18]} 39. e5 {[%emt 0:01:45]} fxe5 {[%emt 0:00:22]} 40. Nxe5 {[%emt 0:00:20]} Nxe5 {[%emt 0:00:39]} 41. dxe5 {[%emt 0:30:13]} Rbd7 {[%emt 0:03:38]} 42. Qe3 {[%emt 0:00:00]} Rd3 {[%emt 0:04:14]} 43. Qxb6 {[%emt 0:00:00]} Rxc3 {[%emt 0:02:20]} 44. Qf6+ {[%emt 0:00:00]} Kh7 {[%emt 0:00:07]} 45. h4 {[%emt 0:00:00]} Rb3 {[%emt 0:07:49]} 46. R1xb3 {[%emt 0:00:00]} cxb3 {[%emt 0:00:14]} 47. Kh2 {[%emt 0:00:00]} Qa7 {[%emt 0:12:17]} 48. Rb6 {[%emt 0:00:00]} Rg7 {[%emt 0:00:13]} 49. h5 {[%emt 0:00:00]} gxh5 {[%emt 0:00:14]} 50. Qxh6+ {[%emt 0:00:00]} Kg8 {[%emt 0:00:03]} 51. Qe3 {[%emt 0:00:06]} b2 {[%emt 0:01:25]} 52. Qb3+ {[%emt 0:01:58]} Qf7 {[%emt 0:00:20]} 53. Rb8+ {[%emt 0:01:45]} Kh7 {[%emt 0:00:11]} 54. Qe3 {[%emt 0:01:42]} Rxg2+ {[%emt 0:03:15]} 55. Kxg2 {[%emt 0:00:09]} Qg6+ {[%emt 0:00:03]} 56. Kh3 {[%emt 0:01:14]} b1=Q {[%emt 0:02:11]} 57. Rxb1 {[%emt 0:01:03]} Qxb1 {[%emt 0:00:04]} 58. e6 {[%emt 0:00:10]} Qf5+ {[%emt 0:00:49]} 59. Kh2 {[%emt 0:00:05]} Qc2+ {[%emt 0:00:16]} 60. Kg3 {[%emt 0:01:23]} Qg6+ {[%emt 0:00:18]} 61. Kh3 {[%emt 0:00:12]} Qf5+ {[%emt 0:00:10]} 62. Kg3 {[%emt 0:00:47]} Qg6+ {[%emt 0:00:04]} 63. Kh3 {[%emt 0:00:16]} Qf5+ {[%emt 0:00:04]} 64. Kh2 {[%emt 0:00:26]} Qc2+ {[%emt 0:00:07]} 65. Kg3 1/2-1/2

[Event "Summer Prague Open-A 2024"]
[Site "Prague"]
[Date "2024.08.03"]
[Round "2.7"]
[White "Ringuet, Cyril"]
[Black "Konopka, Michal"]
[Result "0-1"]
[Annotator "RC"]
[ECO "B03"]
[WhiteElo "2015"]
[BlackElo "2325"]
[PlyCount "96"]
[EventDate "2024.08.02"]
[EventType "swiss"]
[EventCountry "CZE"]
[SourceTitle "playchess.com"]
[Source "ChessBase"]
[SourceQuality "1"]
[TimeControl "40/5400+30:1800+30"]

1. e4 Nf6 2. e5 Nd5 3. d4 d6 4. c4 Nb6 5. exd6 cxd6 6. Nf3 g6 7. h3 Bg7 8. Be2 O-O 9. Nc3 Nc6 10. O-O {[%emt 0:09:51]} Bf5 {[%emt 0:07:38]} 11. d5 {[%emt 0:05:42]} Na5 {[%emt 0:04:55]} 12. Nd4 {[%emt 0:02:28]} Naxc4 {[%emt 0:01:07]} 13. a4 {[%emt 0:04:44]} Rc8 {[%emt 0:16:47]} 14. a5 {[%emt 0:01:31]} Na8 {[%emt 0:03:35]} 15. a6 {[%emt 0:05:31]} bxa6 {[%emt 0:18:03]} 16. Nc6 {[%emt 0:19:39]} Rxc6 {[%emt 0:00:26]} 17. dxc6 {[%emt 0:00:11]} Ne5 {[%emt 0:00:14]} 18. Rxa6 {[%emt 0:03:29]} Nc7 {[%emt 0:01:06]} 19. Rxa7 {[%emt 0:01:33]} Nxc6 {[%emt 0:00:06]} 20. Ra4 {[%emt 0:08:58]} d5 {[%emt 0:15:39]} 21. g4 {[%emt 0:17:33]} Be6 {[%emt 0:05:04]} 22. Nb5 {[%emt 0:03:02]} Nxb5 {[%emt 0:00:58]} 23. Bxb5 {[%emt 0:00:05]} Qb6 {[%emt 0:01:41]} 24. Bxc6 {[%emt 0:01:15]} Qxc6 {[%emt 0:01:46]} 25. Bg5 {[%emt 0:02:44]} Re8 {[%emt 0:04:06]} 26. Rb4 {[%emt 0:01:22]} d4 {[%emt 0:02:44]} 27. Rxd4 {[%emt 0:02:22]} Bxd4 {[%emt 0:00:40]} 28. Qxd4 {[%emt 0:00:04]} f6 {[%emt 0:00:18]} 29. Rc1 {[%emt 0:01:47]} Qf3 {[%emt 0:01:43]} 30. Rc3 Qa8 31. Ra3 {[%emt 0:06:08]} Qc8 {[%emt 0:04:38]} 32. Rc3 {[%emt 0:04:14]} Qb8 33. Bc1 Rd8 34. Qe3 Rd1+ 35. Kg2 Bd5+ {[%emt 0:08:25]} 36. f3 {[%emt 0:01:52]} Qb7 {[%emt 0:00:54]} 37. Rd3 {[%emt 0:01:04]} Bxf3+ 38. Qxf3 Qxf3+ 39. Rxf3 Rxc1 40. Rb3 Kf7 41. Kf3 h5 42. Rb4 h4 43. Rb3 Rc2 44. Ke3 Rg2 45. Kd3 Rg3+ 46. Kc4 Rxb3 47. Kxb3 f5 48. gxf5 g5 0-1

[Event "Summer Prague Open-A 2024"]
[Site "Prague"]
[Date "2024.08.03"]
[Round "2.8"]
[White "Kulhanek, Tomas"]
[Black "Stefanisin, Jan"]
[Result "1-0"]
[Annotator "RC"]
[ECO "A05"]
[WhiteElo "2317"]
[BlackElo "1996"]
[PlyCount "91"]
[EventDate "2024.08.02"]
[EventType "swiss"]
[EventCountry "CZE"]
[SourceTitle "playchess.com"]
[Source "ChessBase"]
[SourceQuality "1"]
[TimeControl "40/5400+30:1800+30"]

1. Nf3 {[%emt 0:22:38]} Nf6 {[%emt 0:00:41]} 2. g3 {[%emt 0:00:11]} d5 {[%emt 0:00:45]} 3. Bg2 {[%emt 0:00:06]} c5 {[%emt 0:02:36]} 4. O-O {[%emt 0:00:58]} Nc6 {[%emt 0:00:11]} 5. d4 {[%emt 0:00:31]} e6 {[%emt 0:01:14]} 6. c4 {[%emt 0:00:26]} dxc4 {[%emt 0:06:31]} 7. Qa4 {[%emt 0:00:28]} Bd7 {[%emt 0:00:42]} 8. Qxc4 {[%emt 0:03:08]} cxd4 {[%emt 0:05:08]} 9. Nxd4 {[%emt 0:00:28]} Rc8 {[%emt 0:00:41]} 10. Nxc6 {[%emt 0:03:52]} Bxc6 {[%emt 0:01:36]} 11. Bxc6+ {[%emt 0:00:14]} Rxc6 {[%emt 0:00:25]} 12. Qa4 {[%emt 0:00:06]} Bc5 {[%emt 0:04:44]} 13. Nc3 {[%emt 0:01:07]} O-O {[%emt 0:02:19]} 14. Bg5 {[%emt 0:01:25]} h6 {[%emt 0:11:45]} 15. Rad1 {[%emt 0:02:42]} Qb6 {[%emt 0:03:44]} 16. Bxf6 {[%emt 0:01:28]} gxf6 {[%emt 0:00:20]} 17. Rd3 {[%emt 0:11:03]} f5 {[%emt 0:02:53]} 18. e4 {[%emt 0:12:12]} Qxb2 {[%emt 0:11:09]} 19. exf5 {[%emt 0:02:49]} exf5 {[%emt 0:00:31]} 20. Qf4 {[%emt 0:01:43]} Qb4 {[%emt 0:01:30]} 21. Qf3 {[%emt 0:04:21]} Qg4 {[%emt 0:03:53]} 22. Rb1 {[%emt 0:04:18]} Bb6 {[%emt 0:10:50]} 23. Kg2 {[%emt 0:10:40]} Qxf3+ {[%emt 0:13:46]} 24. Rxf3 {[%emt 0:00:14]} f4 {[%emt 0:00:21]} 25. Nd5 {[%emt 0:01:11]} Rc2 {[%emt 0:03:53]} 26. Rxf4 {[%emt 0:02:26]} Bd8 {[%emt 0:01:19]} 27. a4 {[%emt 0:02:03]} b6 {[%emt 0:00:07]} 28. h4 {[%emt 0:00:49]} Re8 {[%emt 0:01:30]} 29. Rd1 {[%emt 0:01:14]} Rb2 {[%emt 0:01:24]} 30. Nc3 {[%emt 0:02:23]} Kg7 {[%emt 0:02:46]} 31. Rd7 {[%emt 0:01:47]} Bf6 {[%emt 0:00:26]} 32. Nd5 {[%emt 0:00:50]} Re6 {[%emt 0:00:08]} 33. Rg4+ {[%emt 0:03:32]} Kf8 {[%emt 0:00:11]} 34. Rf4 {[%emt 0:00:59]} Be7 {[%emt 0:02:14]} 35. Rxa7 {[%emt 0:00:14]} Rd2 {[%emt 0:00:47]} 36. Rf5 {[%emt 0:00:32]} Ra2 {[%emt 0:01:33]} 37. Rf4 {[%emt 0:01:23]} Rd2 {[%emt 0:01:02]} 38. Ra8+ {[%emt 0:01:05]} Kg7 {[%emt 0:00:29]} 39. Rg4+ {[%emt 0:00:12]} Kh7 {[%emt 0:00:30]} 40. Rag8 {[%emt 0:00:38]} Bg5 {[%emt 0:00:23]} 41. Nf4 {[%emt 0:11:22]} f5 {[%emt 0:04:52]} 42. Nxe6 {[%emt 0:03:23]} Kxg8 {[%emt 0:00:13]} 43. Rd4 {[%emt 0:00:53]} Re2 {[%emt 0:00:21]} 44. Nxg5 {[%emt 0:00:44]} hxg5 {[%emt 0:00:11]} 45. hxg5 {[%emt 0:00:06]} Kf7 {[%emt 0:00:21]} 46. Rd6 {[%emt 0:00:37]} 1-0